Workbook

Sheet 数値シミュレーション
A1: ゴルフボールの運動
O2: Sp＝(πdn/60)/u
A3: 空力係数 | O3: n | P3: 400
A4: Sp | B4: Cd | C4: Sp | D4: Cl | E4: Sp | F4: Cm | O4: d | P4: 0.05
A5: 0.01 | B5: 0.21 | C5: 0.03 | D5: 0.1 | E5: 0.01 | F5: 0.0012 | O5: u | P5: 1 | S5: =PI()*P$4*P$3/60/P5 -> 1.047197551
A6: 0.03 | B6: 0.21 | C6: 0.03 | D6: 0.1 | E6: 0.2 | F6: 0.002 | P6: 50 | S6: =PI()*P$4*P$3/60/P6 -> 0.02094395102
A7: 0.1 | B7: 0.234 | C7: 0.06 | D7: 0.142 | E7: 0.5 | F7: 0.004 | P7: 100 | S7: 0.01047197551
A8: 0.2 | B8: 0.278 | C8: 0.1 | D8: 0.171 | E8: 0.8 | F8: 0.008
A9: 0.4 | B9: 0.37 | C9: 0.2 | D9: 0.255 | E9: 2 | F9: 0.02
A10: 0.7 | B10: 0.468 | C10: 0.4 | D10: 0.36
A11: 1 | B11: 0.51 | C11: 0.7 | D11: 0.425
A12: 0.7 | B12: 0.468 | C12: 1 | D12: 0.46
A13: 1 | B13: 0.51 | C13: 0.7 | D13: 0.425
A14: 2 | B14: 0.54 | C14: 1 | D14: 0.46
C15: 1.5 | D15: 0.55
C16: 2 | D16: 0.55
A74: 計算式
B75: u⇡＝(vx－vax、vy、vz－vaz) ：対気速度ベクトル
B76: u＝|u⇡|＝√(ux^2＋uy^2＋uz^2)
B77: ξ⇡＝u⇡/u ：対気速度方向単位ベクトル
B78: η⇡＝ζ⇡×ξ⇡ ：揚力方向単位ベクトル
B79: Sp＝(d/2)ω/u ：スピンパラメータ（ボール周速度と対気速度の比）
B80: Cd＝cd(Sp) ：抵抗係数（スピンパラメータの多項式）
B81: Cl＝cl(Sp) ：揚力係数（スピンパラメータの多項式）
B82: Cm＝cm(Sp) ：モーメント係数（スピンパラメータの多項式）
B83: q＝(1/2)ρu^2 ：動圧
B84: D⇡＝qCdAξ⇡ ：抵抗ベクトル
B85: L⇡＝qClAη⇡ ：揚力ベクトル
B86: Dm＝qCmAd ：スピン減衰トルク
B87: g⇡＝(0、g、0) ：重力加速度ベクトル
B88: a⇡＝(－D⇡＋L⇡)/m－g⇡ ：ボールの加速度ベクトル
B89: dω/dt＝－Dm/I ：スピン角加速度 | J89: 一般のExcel計算式と同様に、入力データを１つでも変更すると直ちにマクロが実行されます。
J90: 入力データを複数変更してから計算するには、［数式］タブ→［計算方法の設定］メニュー→［手動］を選択しておきます。
A91: 初期値計算 | J91: =exe("マクロ呼び出し（ここをダブルクリックしてEnter）","golf",G97:G103,G106:G133,J96:Q596) -> マクロ呼び出し（ここをダブルクリックしてEnter） | Q91: マクロは[標準モジュール]のMoｄule6に入っています。
B92: v0⇡＝v0(cosθ、sinθ、0) ：ボールの初期速度ベクトル | J92: マクロは[標準モジュール]のMoｄule6に入っています。
B93: r0⇡＝(0、0、0) ：ボールの初期位置ベクトル | J93: 時間 | K93: 速度 | N93: 位置 | Q93: スピン
B94: ω0＝2πn/60 ：初期スピン角速度 | J94: t | K94: vx | L94: vy | M94: vz | N94: x | O94: y | P94: z | Q94: ω | R94: n | S94: -z | T94: z軸はy軸目盛で表示。
J95: [s] | K95: [m/s] | L95: [m/s] | M95: [m/s] | N95: [m] | O95: [m] | P95: [m] | Q95: [rad/s] | R95: [rpm] | S95: [m] | T95: ただし、ｚ＋がｙ－目盛になるので、符号反転。
A96: 初期値 | J96: 0.025 | K96: 77.23066517 | L96: 19.33377126 | M96: 0.04390182656 | N96: 1.935671434 | O96: 0.4835994315 | P96: 0.0005498978351 | Q96: 208.6674673 | R96: =Q96/(2*PI())*60 -> 1992.627533 | S96: =-P96 -> -0.0005498978351
B97: 初期速度ベクトルv0⇡ | E97: vx0=v0cosθ | G97: =G111*COS(RADIANS(G112)) -> 77.6236581 | H97: m/s | J97: 0.05 | K97: 76.84130524 | L97: 19.31122569 | M97: 0.0872678758 | N97: 3.861563533 | O97: 0.9666671868 | P97: 0.002190626562 | Q97: 207.9028183 | R97: =Q97/(2*PI())*60 -> 1985.325673 | S97: -0.002190626562
E98: vy0=v0sinθ | G98: =G111*SIN(RADIANS(G112)) -> 19.35375165 | H98: m/s | J98: 0.075 | K98: 76.45554191 | L98: 19.28616333 | M98: 0.1301064959 | N98: 5.777766668 | O98: 1.449139743 | P98: 0.004908896427 | Q98: 207.1454696 | R98: =Q98/(2*PI())*60 -> 1978.093525 | S98: -0.004908896427
E99: vz0=0 | G99: 0 | H99: m/s | J99: 0.1 | K99: 76.07333918 | L99: 19.25863154 | M99: 0.1724258803 | N99: 7.684370301 | O99: 1.930954775 | P99: 0.008691624437 | Q99: 206.3953287 | R99: 1970.930207 | S99: -0.008691624437
B100: 初期位置ベクトルr0⇡ | E100: x0=0 | G100: 0 | H100: m | J100: 0.125 | K100: 75.69466144 | L100: 19.22867676 | M100: 0.2142340709 | N100: 9.581463001 | O100: 2.412051129 | P100: 0.01352593054 | Q100: 205.6523047 | R100: 1963.834851 | S100: -0.01352593054
E101: y0=0 | G101: 0 | H101: m | J101: 0.15 | K101: 75.31947344 | L101: 19.19634447 | M101: 0.2555389614 | N101: 11.46913245 | O101: 2.892368801 | P101: 0.01939913386 | Q101: 204.9163083 | R101: 1956.806603 | S101: -0.01939913386
E102: z0=0 | G102: 0 | H102: m | J102: 0.175 | K102: 74.94774035 | L102: 19.16167924 | M102: 0.2963483008 | N102: 13.34746546 | O102: 3.371848912 | P102: 0.02629874905 | Q102: 204.1872514 | R102: 1949.844623 | S102: -0.02629874905
B103: 初期スピン角速度 | E103: ω0=2πn/60 | G103: =2*PI()*G113/60 -> 209.4395102 | H103: rad/s | J103: 0.2 | K103: 74.57942768 | L103: 19.12472473 | M103: 0.3366696961 | N103: 15.21654797 | O103: 3.850433686 | P103: 0.03421248273 | Q103: 203.4650474 | R103: 1942.948082 | S103: -0.03421248273
J104: 0.225 | K104: 74.21450134 | L104: 19.08552372 | M104: 0.3765106159 | N104: 17.07646507 | O104: 4.328066427 | P104: 0.04312822994 | Q104: 202.7496109 | R104: 1936.116167 | S104: -0.04312822994
A105: 入力データ | J105: 0.25 | K105: 73.85292758 | L105: 19.04411814 | M105: 0.4158783928 | N105: 18.92730098 | O105: 4.8046915 | P105: 0.05303407071 | Q105: 202.040858 | R105: 1929.348075 | S105: -0.05303407071
B106: 積分間隔 | E106: Δt | G106: 0.0125 | H106: s | J106: 0.275 | K106: 73.49467305 | L106: 19.0005491 | M106: 0.4547802267 | N106: 20.76913911 | O106: 5.280254306 | P106: 0.06391826675 | Q106: 201.3387059 | R106: 1922.643017 | S106: -0.06391826675
B107: 質量 | E107: m | F107: 45.93 | G107: =F107/1000 -> 0.04593 | H107: kg | J107: 0.3 | K107: 73.13970473 | L107: 18.95485684 | M107: 0.4932231877 | N107: 22.60206202 | O107: 5.754701262 | P107: 0.07576925814 | Q107: 200.6430732 | R107: 1916.000214 | S107: -0.07576925814
B108: 慣性モーメント | E108: I | G108: 8.362607838e-06 | H108: kgm^2 | J108: 0.325 | K108: 72.78798997 | L108: 18.90708085 | M108: 0.5312142185 | N108: 24.42615146 | O108: 6.227979784 | P108: 0.08857566009 | Q108: 199.9538798 | R108: 1909.418902 | S108: -0.08857566009
B109: ボールの直径 | E109: d | F109: 42.67 | G109: =F109/1000 -> 0.04267 | H109: m | J109: 0.35 | K109: 72.43949648 | L109: 18.85725979 | M109: 0.5687601374 | N109: 26.24148836 | O109: 6.700038262 | P109: 0.1023262598 | Q109: 199.2710467 | R109: 1902.898325 | S109: -0.1023262598
B110: ボールの断面積 | E110: A=(π/4)d^2 | G110: =(PI()/4)*G109^2 -> 0.001429997134 | H110: m^2 | J110: 0.375 | K110: 72.09419231 | L110: 18.8054316 | M110: 0.605867641 | N110: 28.04815286 | O110: 7.170826047 | P110: 0.1170100135 | Q110: 198.594496 | R110: 1896.437742 | S110: -0.1170100135
B111: 打出し速度 | E111: v0 | G111: 80 | H111: m/s | J111: 0.4 | K111: 71.75204585 | L111: 18.75163342 | M111: 0.6425433064 | N111: 29.84622429 | O111: 7.640293426 | P111: 0.1326160433 | Q111: 197.9241512 | R111: 1890.036421 | S111: -0.1326160433
B112: 打出し角 | E112: θ | G112: 14 | H112: deg | J112: 0.425 | K112: 71.41302585 | L112: 18.6959017 | M112: 0.678793594 | N112: 31.6357812 | O112: 8.108391606 | P112: 0.1491336341 | Q112: 197.2599368 | R112: 1883.693641 | S112: -0.1491336341
B113: ボールのスピン速度 | E113: ｎ | G113: 2000 | H113: rpm | J113: 0.45 | K113: 71.07710139 | L113: 18.63827215 | M113: 0.7146248499 | N113: 33.41690138 | O113: 8.575072696 | P113: 0.1665522311 | Q113: 196.6017784 | R113: 1877.408691 | S113: -0.1665522311
B114: スピン軸傾斜 | E114: φ | G114: 5 | H114: deg | J114: 0.475 | K114: 70.74424187 | L114: 18.57877977 | M114: 0.7500433085 | N114: 35.18966182 | O114: 9.04028969 | P114: 0.1848614366 | Q114: 195.9496029 | R114: 1871.180874 | S114: -0.1848614366
B115: スピン軸単位ベクトルζ⇡ | E115: ztax=0 | G115: 0 | H115: ND | J115: 0.5 | K115: 70.41441704 | L115: 18.51745891 | M115: 0.7850550942 | N115: 36.95413876 | O115: 9.503996447 | P115: 0.2040510076 | Q115: 195.303338 | R115: 1865.009499 | S115: -0.2040510076
E116: ztay=－sinφ | G116: =-SIN(RADIANS(G114)) -> -0.08715574275 | H116: ND | J116: 0.525 | K116: 70.08759698 | L116: 18.4543432 | M116: 0.8196662243 | N116: 38.71040771 | O116: 9.966147678 | P116: 0.2241108526 | Q116: 194.6629126 | R116: 1858.893887 | S116: -0.2241108526
E117: ztaz=cosφ | G117: =COS(RADIANS(G114)) -> 0.9961946981 | H117: ND | J117: 0.55 | K117: 69.76375207 | L117: 18.38946566 | M117: 0.8538826111 | N117: 40.4585434 | O117: 10.42669893 | P117: 0.2450310293 | Q117: 194.0282568 | R117: 1852.83337 | S117: -0.2450310293
B118: 風速（追い風、向かい風） | E118: vax | G118: 4 | H118: m/s | J118: 0.575 | K118: 69.44285303 | L118: 18.32285863 | M118: 0.8877100636 | N118: 42.19861986 | O118: 10.88560655 | P118: 0.266801742 | Q118: 193.3993013 | R118: 1846.827288 | S118: -0.266801742
B119: 風速（横風） | E119: vaz | G119: 4 | H119: m/s | J119: 0.6 | K119: 69.12487089 | L119: 18.25455384 | M119: 0.9211542904 | N119: 43.93071036 | O119: 11.34282771 | P119: 0.289413339 | Q119: 192.7759782 | R119: 1840.874991 | S119: -0.289413339
B120: 空気密度 | E120: ρ | G120: 1.293 | H120: kg/m^3 | J120: 0.625 | K120: 68.80977699 | L120: 18.18458242 | M120: 0.954220901 | N120: 45.65488747 | O120: 11.79832035 | P120: 0.3128563098 | Q120: 192.1582205 | R120: 1834.975839 | S120: -0.3128563098
B121: 重力加速度定数 | E121: g | G121: 9.80665 | H121: m/s^2 | J121: 0.65 | K121: 68.49754299 | L121: 18.11297486 | M121: 0.9869154084 | N121: 47.37122304 | O121: 12.2520432 | P121: 0.3371212832 | Q121: 191.5459619 | R121: 1829.1292 | S121: -0.3371212832
B122: 抵抗係数 0次係数 | E122: cd0 | F122: 0.1923 | G122: =F$136*F122 -> 0.09615 | J122: 0.675 | K122: 68.18814084 | L122: 18.03976109 | M122: 1.019243231 | N122: 49.07978822 | O122: 12.70395571 | P122: 0.3621990245 | Q122: 190.9391373 | R122: 1823.334452 | S122: -0.3621990245
B123: 抵抗係数 1次係数 | E123: cd1 | F123: 0.5394 | G123: =F$136*F123 -> 0.2697 | J123: 0.7 | K123: 67.8815428 | L123: 17.96497046 | M123: 1.051209693 | N123: 50.78065345 | O123: 13.15401811 | P123: 0.3880804334 | Q123: 190.3376824 | R123: 1817.590981 | S123: -0.3880804334
B124: 抵抗係数 2次係数 | E124: cd2 | F124: -0.2499 | G124: =F$136*F124 -> -0.12495 | J124: 0.725 | K124: 67.57772144 | L124: 17.88863175 | M124: 1.08282003 | N124: 52.4738885 | O124: 13.60219133 | P124: 0.4147565415 | Q124: 189.741534 | R124: 1811.898183 | S124: -0.4147565415
B125: 抵抗係数 3次係数 | E125: cd3 | F125: 0.0335 | G125: =F$136*F125 -> 0.01675 | J125: 0.75 | K125: 67.2766496 | L125: 17.81077319 | M125: 1.114079387 | N125: 54.15956244 | O125: 14.04843703 | P125: 0.4422185101 | Q125: 189.1506296 | R125: 1806.255462 | S125: -0.4422185101
B126: 揚力係数 0次係数 | E126: cl0 | F126: 0.093 | G126: =F$137*F126 -> 0.0744 | J126: 0.775 | K126: 66.97830043 | L126: 17.73142247 | M126: 1.144992821 | N126: 55.83774367 | O126: 14.49271756 | P126: 0.4704576282 | Q126: 188.5649076 | R126: 1800.662228 | S126: -0.4704576282
B127: 揚力係数 1次係数 | E127: cl1 | F127: 0.7879 | G127: =F$137*F127 -> 0.63032 | J127: 0.8 | K127: 66.68264737 | L127: 17.65060676 | M127: 1.175565305 | N127: 57.50849993 | O127: 14.93499595 | P127: 0.4994653099 | Q127: 187.9843072 | R127: 1795.117903 | S127: -0.4994653099
B128: 揚力係数 2次係数 | E128: cl2 | F128: -0.5219 | G128: =F$137*F128 -> -0.41752 | J128: 0.825 | K128: 66.38966413 | L128: 17.56835271 | M128: 1.205801726 | N128: 59.17189828 | O128: 15.37523591 | P128: 0.5292330929 | Q128: 187.4087686 | R128: 1789.621914 | S128: =-P128 -> -0.5292330929
B129: 揚力係数 3次係数 | E129: cl3 | F129: 0.1223 | G129: =F$137*F129 -> 0.09784 | J129: 0.85 | K129: 66.09932473 | L129: 17.48468645 | M129: 1.235706892 | N129: 60.82800516 | O129: 15.81340181 | P129: 0.5597526358 | Q129: 186.8382328 | R129: 1784.173698 | S129: -0.5597526358
B130: モーメント係数 0次係数 | E130: cm0 | F130: 0.0007 | G130: =F$138*F130 -> 0.0007 | J130: 0.875 | K130: 65.81160343 | L130: 17.39963362 | M130: 1.265285527 | N130: 62.47688634 | O130: 16.24945868 | P130: 0.5910157164 | Q130: 186.2726414 | R130: 1778.772699 | S130: -0.5910157164
B131: モーメント係数 1次係数 | E131: cm1 | F131: 0.0073 | G131: =F$138*F131 -> 0.0073 | J131: 0.9 | K131: 65.52647479 | L131: 17.3132194 | M131: 1.294542278 | N131: 64.11860694 | O131: 16.68337215 | P131: 0.6230142298 | Q131: 185.7119371 | R131: 1773.418367 | S131: -0.6230142298
B132: モーメント係数 2次係数 | E132: cm2 | F132: 0.0012 | G132: =F$138*F132 -> 0.0012 | J132: 0.925 | K132: 65.24391365 | L132: 17.22546846 | M132: 1.323481714 | N132: 65.75323147 | O132: 17.11510851 | P132: 0.6557401861 | Q132: 185.1560632 | R132: 1768.110162 | S132: -0.6557401861
B133: モーメント係数 3次係数 | E133: cm3 | F133: 0 | G133: =F$138*F133 -> 0 | J133: 0.95 | K133: 64.9638951 | L133: 17.13640502 | M133: 1.352108328 | N133: 67.38082381 | O133: 17.54463464 | P133: 0.6891857087 | Q133: 184.6049637 | R133: 1762.847549 | S133: -0.6891857087
J134: 0.975 | K134: 64.6863945 | L134: 17.04605285 | M134: 1.380426539 | N134: 69.00144721 | O134: 17.97191802 | P134: 0.7233430325 | Q134: 184.0585835 | R134: 1757.630003 | S134: -0.7233430325
B135: 慣性モーメント(均質な球) | E135: I | G135: =(2/5)*G107*(G109/2)^2 -> 8.362607838e-06 | H135: kgm^2 | J135: 1 | K135: 64.41138748 | L135: 16.95443526 | M135: 1.408440692 | N135: 70.61516432 | O135: 18.39692673 | P135: 0.7582045018 | Q135: 183.5168682 | R135: 1752.457002 | S135: -0.7582045018
B136: 抵抗係数微調整用乗数 | F136: 0.5 | J136: 1.025 | K136: 64.13884992 | L136: 16.86157515 | M136: 1.436155062 | N136: 72.22203716 | O136: 18.81962943 | P136: 0.7937625689 | Q136: 182.979764 | R136: 1747.328036 | S136: -0.7937625689
B137: 揚力係数微調整用乗数 | F137: 0.8 | J137: 1.05 | K137: 63.86875798 | L137: 16.76749497 | M137: 1.463573852 | N137: 73.82212719 | O137: 19.23999532 | P137: 0.8300097918 | Q137: 182.4472182 | R137: 1742.242597 | S137: -0.8300097918
B138: モーメント係数微調整用乗数 | F138: 1 | J138: 1.075 | K138: 63.60108804 | L138: 16.67221676 | M138: 1.490701198 | N138: 75.41549525 | O138: 19.65799419 | P138: 0.8669388328 | Q138: 181.9191782 | R138: 1737.200187 | S138: -0.8669388328
J139: 1.1 | K139: 63.33581675 | L139: 16.57576214 | M139: 1.517541168 | N139: 77.00220158 | O139: 20.07359636 | P139: 0.9045424569 | Q139: 181.3955926 | R139: 1732.200313 | S139: -0.9045424569
J140: 1.125 | K140: 63.07292101 | L140: 16.47815234 | M140: 1.544097761 | N140: 78.58230588 | O140: 20.48677267 | P140: 0.9428135298 | Q140: 180.8764104 | R140: 1727.242489 | S140: -0.9428135298
J141: 1.15 | K141: 62.81237796 | L141: 16.37940821 | M141: 1.570374916 | N141: 80.15586724 | O141: 20.89749452 | P141: 0.9817450164 | Q141: 180.3615814 | R141: 1722.326234 | S141: -0.9817450164
J142: 1.175 | K142: 62.55416498 | L142: 16.27955018 | M142: 1.596376505 | N142: 81.72294419 | O142: 21.3057338 | P142: 1.021329979 | Q142: 179.851056 | R142: 1717.451075 | S142: -1.021329979
J143: 1.2 | K143: 62.29825969 | L143: 16.17859835 | M143: 1.622106339 | N143: 83.28359472 | O143: 21.71146292 | P143: 1.061561577 | Q143: 179.3447852 | R143: 1712.616545 | S143: -1.061561577
J144: 1.225 | K144: 62.04463995 | L144: 16.0765724 | M144: 1.647568166 | N144: 84.83787623 | O144: 22.11465477 | P144: 1.102433063 | Q144: 178.8427206 | R144: 1707.822181 | S144: -1.102433063
J145: 1.25 | K145: 61.79328386 | L145: 15.97349169 | M145: 1.672765676 | N145: 86.38584558 | O145: 22.51528275 | P145: 1.143937783 | Q145: 178.3448146 | R145: 1703.067529 | S145: -1.143937783
J146: 1.275 | K146: 61.54416973 | L146: 15.8693752 | M146: 1.697702497 | N146: 87.9275591 | O146: 22.91332072 | P146: 1.186069174 | Q146: 177.85102 | R146: 1698.352138 | S146: -1.186069174
J147: 1.3 | K147: 61.29727611 | L147: 15.76424158 | M147: 1.722382204 | N147: 89.46307257 | O147: 23.30874303 | P147: 1.228820765 | Q147: 177.3612902 | R147: 1693.675563 | S147: -1.228820765
J148: 1.325 | K148: 61.05258179 | L148: 15.65810914 | M148: 1.746808311 | N148: 90.99244123 | O148: 23.70152448 | P148: 1.272186171 | Q148: 176.8755795 | R148: 1689.037367 | S148: -1.272186171
J149: 1.35 | K149: 60.81006576 | L149: 15.55099585 | M149: 1.770984276 | N149: 92.51571981 | O149: 24.09164031 | P149: 1.316159096 | Q149: 176.3938423 | R149: 1684.437116 | S149: -1.316159096
J150: 1.375 | K150: 60.56970724 | L150: 15.44291935 | M150: 1.794913507 | N150: 94.0329625 | O150: 24.47906624 | P150: 1.360733329 | Q150: 175.916034 | R150: 1679.874382 | S150: -1.360733329
J151: 1.4 | K151: 60.33148567 | L151: 15.33389698 | M151: 1.818599353 | N151: 95.54422298 | O151: 24.8637784 | P151: 1.405902743 | Q151: 175.4421102 | R151: 1675.348743 | S151: -1.405902743
J152: 1.425 | K152: 60.0953807 | L152: 15.22394574 | M152: 1.842045114 | N152: 97.04955442 | O152: 25.24575335 | P152: 1.451661296 | Q152: 174.9720272 | R152: 1670.859782 | S152: -1.451661296
J153: 1.45 | K153: 59.86137219 | L153: 15.11308235 | M153: 1.865254035 | N153: 98.54900949 | O153: 25.62496809 | P153: 1.498003025 | Q153: 174.505742 | R153: 1666.407086 | S153: -1.498003025
J154: 1.475 | K154: 59.62944023 | L154: 15.00132321 | M154: 1.888229314 | N154: 100.0426403 | O154: 26.0014 | P154: 1.544922051 | Q154: 174.0432118 | R154: 1661.990248 | S154: -1.544922051
J155: 1.5 | K155: 59.39956508 | L155: 14.88868445 | M155: 1.910974097 | N155: 101.5304986 | O155: 26.37502692 | P155: 1.59241257 | Q155: 173.5843946 | R155: 1657.608866 | S155: -1.59241257
J156: 1.525 | K156: 59.17172725 | L156: 14.77518189 | M156: 1.933491481 | N156: 103.0126356 | O156: 26.74582703 | P156: 1.64046886 | Q156: 173.1292487 | R156: 1653.262544 | S156: -1.64046886
J157: 1.55 | K157: 58.94590742 | L157: 14.66083107 | M157: 1.955784516 | N157: 104.4891018 | O157: 27.11377894 | P157: 1.689085275 | Q157: 172.6777331 | R157: 1648.950887 | S157: -1.689085275
J158: 1.575 | K158: 58.72208648 | L158: 14.54564728 | M158: 1.977856203 | N158: 105.9599476 | O158: 27.47886164 | P158: 1.738256242 | Q158: 172.2298071 | R158: 1644.673509 | S158: -1.738256242
J159: 1.6 | K159: 58.50024551 | L159: 14.42964549 | M159: 1.9997095 | N159: 107.4252226 | O159: 27.84105449 | P159: 1.787976265 | Q159: 171.7854306 | R159: 1640.430025 | S159: -1.787976265
J160: 1.625 | K160: 58.28036581 | L160: 14.31284046 | M160: 2.021347317 | N160: 108.8849762 | O160: 28.20033722 | P160: 1.838239921 | Q160: 171.3445639 | R160: 1636.220059 | S160: -1.838239921
J161: 1.65 | K161: 58.06242886 | L161: 14.19524665 | M161: 2.042772519 | N161: 110.3392571 | O161: 28.55668994 | P161: 1.889041859 | Q161: 170.9071679 | R161: =Q161/(2*PI())*60 -> 1632.043235 | S161: =-P161 -> -1.889041859
J162: 1.675 | K162: 57.84641631 | L162: 14.07687829 | M162: 2.06398793 | N162: 111.7881137 | O162: 28.9100931 | P162: 1.940376799 | Q162: 170.4732038 | R162: 1627.899183 | S162: -1.940376799
J163: 1.7 | K163: 57.63231003 | L163: 13.95774934 | M163: 2.084996328 | N163: 113.2315938 | O163: 29.26052752 | P163: 1.99223953 | Q163: 170.0426334 | R163: 1623.787538 | S163: -1.99223953
J164: 1.725 | K164: 57.42009207 | L164: 13.83787354 | M164: 2.105800451 | N164: 114.6697449 | O164: 29.60797434 | P164: 2.044624913 | Q164: 169.6154188 | R164: 1619.707939 | S164: -2.044624913
J165: 1.75 | K165: 57.20974464 | L165: 13.71726436 | M165: 2.126402994 | N165: 116.102614 | O165: 29.95241508 | P165: 2.097527873 | Q165: 169.1915226 | R165: 1615.660029 | S165: -2.097527873
J166: 1.775 | K166: 57.00125017 | L166: 13.59593506 | M166: 2.146806611 | N166: 117.5302476 | O166: 30.29383156 | P166: 2.150943405 | Q166: 168.7709079 | R166: 1611.643454 | S166: -2.150943405
J167: 1.8 | K167: 56.79459124 | L167: 13.47389866 | M167: 2.167013919 | N167: 118.9526918 | O167: 30.63220594 | P167: 2.204866568 | Q167: 168.3535381 | R167: 1607.657867 | S167: -2.204866568
J168: 1.825 | K168: 56.58975062 | L168: 13.35116797 | M168: 2.187027491 | N168: 120.3699923 | O168: 30.96752071 | P168: 2.259292486 | Q168: 167.9393772 | R168: 1603.702921 | S168: -2.259292486
J169: 1.85 | K169: 56.38671127 | L169: 13.22775555 | M169: 2.206849866 | N169: 121.7821944 | O169: 31.29975866 | P169: 2.314216349 | Q169: 167.5283893 | R169: 1599.778276 | S169: -2.314216349
J170: 1.875 | K170: 56.18545629 | L170: 13.10367377 | M170: 2.226483541 | N170: 123.1893428 | O170: 31.62890291 | P170: 2.369633407 | Q170: 167.1205393 | R170: 1595.883595 | S170: -2.369633407
J171: 1.9 | K171: 55.98596898 | L171: 12.97893477 | M171: 2.24593098 | N171: 124.5914819 | O171: 31.95493687 | P171: 2.425538974 | Q171: 166.7157921 | R171: 1592.018544 | S171: -2.425538974
J172: 1.925 | K172: 55.7882328 | L172: 12.8535505 | M172: 2.265194606 | N172: 125.9886558 | O172: 32.27784427 | P172: 2.481928424 | Q172: 166.3141133 | R172: 1588.182794 | S172: -2.481928424
J173: 1.95 | K173: 55.59223139 | L173: 12.7275327 | M173: 2.284276809 | N173: 127.380908 | O173: 32.59760912 | P173: 2.538797193 | Q173: 165.9154687 | R173: 1584.376019 | S173: -2.538797193
J174: 1.975 | K174: 55.39794853 | L174: 12.6008929 | M174: 2.303179943 | N174: 128.7682817 | O174: 32.91421572 | P174: 2.596140773 | Q174: 165.5198246 | R174: 1580.597895 | S174: -2.596140773
J175: 2 | K175: 55.20536818 | L175: 12.47364244 | M175: 2.321906327 | N175: 130.1508196 | O175: 33.22764867 | P175: 2.653954717 | Q175: 165.1271475 | R175: 1576.848105 | S175: -2.653954717
J176: 2.025 | K176: 55.01447447 | L176: 12.34579249 | M176: 2.340458246 | N176: 131.5285642 | O176: 33.53789285 | P176: 2.712234635 | Q176: 164.7374044 | R176: 1573.126334 | S176: -2.712234635
J177: 2.05 | K177: 54.82525169 | L177: 12.21735399 | M177: 2.358837952 | N177: 132.9015573 | O177: 33.84493339 | P177: 2.770976194 | Q177: 164.3505627 | R177: 1569.432268 | S177: -2.770976194
J178: 2.075 | K178: 54.63768426 | L178: 12.08833774 | M178: 2.377047662 | N178: 134.2698405 | O178: 34.14875573 | P178: 2.830175116 | Q178: 163.9665901 | R178: 1565.765599 | S178: -2.830175116
J179: 2.1 | K179: 54.4517568 | L179: 11.95875433 | M179: 2.395089563 | N179: 135.6334551 | O179: 34.44934555 | P179: 2.889827179 | Q179: 163.5854546 | R179: 1562.126023 | S179: -2.889827179
J180: 2.125 | K180: 54.26745404 | L180: 11.82861419 | M180: 2.412965809 | N180: 136.9924419 | O180: 34.74668881 | P180: 2.949928214 | Q180: 163.2071246 | R180: 1558.513237 | S180: -2.949928214
J181: 2.15 | K181: 54.0847609 | L181: 11.69792757 | M181: 2.430678524 | N181: 138.3468413 | O181: 35.04077171 | P181: 3.010474106 | Q181: 162.8315687 | R181: 1554.926943 | S181: -3.010474106
J182: 2.175 | K182: 53.90366244 | L182: 11.56670455 | M182: 2.448229799 | N182: 139.6966932 | O182: 35.33158072 | P182: 3.071460795 | Q182: 162.4587561 | R182: 1551.366845 | S182: -3.071460795
J183: 2.2 | K183: 53.72414385 | L183: 11.43495505 | M183: 2.465621697 | N183: 141.0420375 | O183: 35.61910255 | P183: 3.132884268 | Q183: 162.0886561 | R183: 1547.83265 | S183: -3.132884268
J184: 2.225 | K184: 53.5461905 | L184: 11.30268882 | M184: 2.48285625 | N184: 142.3829135 | O184: 35.90332416 | P184: 3.194740568 | Q184: 161.7212384 | R184: 1544.32407 | S184: -3.194740568
J185: 2.25 | K185: 53.36978789 | L185: 11.16991545 | M185: 2.499935461 | N185: 143.71936 | O185: 36.18423276 | P185: 3.257025786 | Q185: 161.3564731 | R185: 1540.840817 | S185: -3.257025786
J186: 2.275 | K186: 53.19492166 | L186: 11.03664439 | M186: 2.516861304 | N186: 145.0514157 | O186: 36.46181579 | P186: 3.319736063 | Q186: 160.9943304 | R186: 1537.382609 | S186: -3.319736063
J187: 2.3 | K187: 53.0215776 | L187: 10.90288492 | M187: 2.533635727 | N187: 146.3791188 | O187: 36.73606091 | P187: 3.38286759 | Q187: 160.6347809 | R187: 1533.949165 | S187: -3.38286759
J188: 2.325 | K188: 52.84974164 | L188: 10.76864617 | M188: 2.550260646 | N188: 147.7025071 | O188: 37.00695604 | P188: 3.446416604 | Q188: 160.2777957 | R188: 1530.540208 | S188: -3.446416604
J189: 2.35 | K189: 52.67939985 | L189: 10.63393713 | M189: 2.566737954 | N189: 149.0216183 | O189: 37.2744893 | P189: 3.510379392 | Q189: 159.923346 | R189: 1527.155462 | S189: -3.510379392
J190: 2.375 | K190: 52.51053844 | L190: 10.49876666 | M190: 2.583069514 | N190: 150.3364895 | O190: 37.53864905 | P190: 3.574752287 | Q190: 159.5714032 | R190: 1523.794656 | S190: -3.574752287
J191: 2.4 | K191: 52.34314376 | L191: 10.36314345 | M191: 2.599257165 | N191: 151.6471574 | O191: 37.79942386 | P191: 3.639531668 | Q191: 159.2219392 | R191: 1520.457521 | S191: -3.639531668
J192: 2.425 | K192: 52.17720228 | L192: 10.22707606 | M192: 2.615302719 | N192: 152.9536588 | O192: 38.05680252 | P192: 3.704713961 | Q192: 158.8749262 | R192: 1517.14379 | S192: -3.704713961
J193: 2.45 | K193: 52.01270061 | L193: 10.09057294 | M193: 2.631207962 | N193: 154.2560296 | O193: 38.31077404 | P193: 3.770295635 | Q193: 158.5303363 | R193: 1513.8532 | S193: -3.770295635
J194: 2.475 | K194: 51.84962552 | L194: 9.953642382 | M194: 2.646974655 | N194: 155.5543057 | O194: 38.56132761 | P194: 3.836273205 | Q194: 158.1881425 | R194: 1510.585489 | S194: -3.836273205
J195: 2.5 | K195: 51.68796386 | L195: 9.816292551 | M195: 2.662604536 | N195: 156.8485226 | O195: 38.80845266 | P195: 3.902643228 | Q195: 157.8483174 | R195: 1507.340399 | S195: -3.902643228
J196: 2.525 | K196: 51.52770265 | L196: 9.678531491 | M196: 2.678099316 | N196: 158.1387155 | O196: 39.05213881 | P196: 3.969402306 | Q196: 157.5108344 | R196: 1504.117673 | S196: -3.969402306
J197: 2.55 | K197: 51.36882903 | L197: 9.54036712 | M197: 2.693460685 | N197: 159.4249193 | O197: 39.29237587 | P197: 4.036547082 | Q197: 157.1756669 | R197: 1500.917059 | S197: -4.036547082
J198: 2.575 | K198: 51.21133024 | L198: 9.401807234 | M198: 2.708690307 | N198: 160.7071684 | O198: 39.52915387 | P198: 4.104074242 | Q198: 156.8427886 | R198: 1497.738306 | S198: -4.104074242
J199: 2.6 | K199: 51.05519368 | L199: 9.26285951 | M199: 2.723789824 | N199: 161.9854972 | O199: 39.762463 | P199: 4.171980513 | Q199: 156.5121735 | R199: 1494.581164 | S199: -4.171980513
J200: 2.625 | K200: 50.90040686 | L200: 9.123531508 | M200: 2.738760856 | N200: 163.2599394 | O200: 39.99229368 | P200: 4.240262662 | Q200: 156.1837959 | R200: 1491.445389 | S200: -4.240262662
J201: 2.65 | K201: 50.74695741 | L201: 8.983830672 | M201: 2.753605 | N201: 164.5305287 | O201: 40.21863647 | P201: 4.308917498 | Q201: 155.8576301 | R201: 1488.330735 | S201: -4.308917498
J202: 2.675 | K202: 50.59483309 | L202: 8.843764336 | M202: 2.768323829 | N202: 165.7972983 | O202: 40.44148216 | P202: 4.377941868 | Q202: 155.5336509 | R202: 1485.236961 | S202: -4.377941868
J203: 2.7 | K203: 50.44402175 | L203: 8.703339722 | M203: 2.782918899 | N203: 167.0602812 | O203: 40.6608217 | P203: 4.447332658 | Q203: 155.2118332 | R203: 1482.163829 | S203: -4.447332658
J204: 2.725 | K204: 50.2945114 | L204: 8.562563948 | M204: 2.79739174 | N204: 168.3195102 | O204: 40.87664622 | P204: 4.517086794 | Q204: 154.8921523 | R204: 1479.111101 | S204: -4.517086794
J205: 2.75 | K205: 50.14629015 | L205: 8.421444022 | M205: 2.811743863 | N205: 169.5750176 | O205: 41.08894703 | P205: 4.587201239 | Q205: 154.5745836 | R205: 1476.078543 | S205: -4.587201239
J206: 2.775 | K206: 49.99934622 | L206: 8.279986853 | M206: 2.82597676 | N206: 170.8268354 | O206: 41.29771561 | P206: 4.657672994 | Q206: 154.2591027 | R206: 1473.065923 | S206: -4.657672994
J207: 2.8 | K207: 49.85366794 | L207: 8.138199247 | M207: 2.840091899 | N207: 172.0749954 | O207: 41.50294362 | P207: 4.728499096 | Q207: 153.9456855 | R207: 1470.073009 | S207: -4.728499096
J208: 2.825 | K208: 49.70924377 | L208: 7.996087912 | M208: 2.854090732 | N208: 173.3195292 | O208: 41.70462288 | P208: 4.79967662 | Q208: 153.6343082 | R208: 1467.099575 | S208: -4.79967662
J209: 2.85 | K209: 49.56606228 | L209: 7.853659457 | M209: 2.867974688 | N209: 174.560468 | O209: 41.90274538 | P209: 4.871202675 | Q209: 153.324947 | R209: 1464.145393 | S209: -4.871202675
J210: 2.875 | K210: 49.42411215 | L210: 7.710920401 | M210: 2.881745178 | N210: 175.7978426 | O210: 42.09730326 | P210: 4.943074409 | Q210: 153.0175786 | R210: 1461.210241 | S210: -4.943074409
J211: 2.9 | K211: 49.28338215 | L211: 7.567877166 | M211: 2.895403596 | N211: 177.0316837 | O211: 42.28828886 | P211: 5.015289 | Q211: 152.7121796 | R211: 1458.293895 | S211: -5.015289
J212: 2.925 | K212: 49.14386118 | L212: 7.424536085 | M212: 2.908951314 | N212: 178.2620218 | O212: 42.47569464 | P212: 5.087843666 | Q212: 152.4087271 | R212: 1455.396137 | S212: -5.087843666
J213: 2.95 | K213: 49.00553825 | L213: 7.280903401 | M213: 2.922389687 | N213: 179.4888868 | O213: 42.65951324 | P213: 5.160735655 | Q213: 152.1071981 | R213: 1452.516748 | S213: -5.160735655
J214: 2.975 | K214: 48.86840247 | L214: 7.136985272 | M214: 2.935720051 | N214: 180.7123086 | O214: 42.83973743 | P214: 5.23396225 | Q214: 151.8075702 | R214: 1449.655512 | S214: -5.23396225
J215: 3 | K215: 48.73244304 | L215: 6.99278777 | M215: 2.948943726 | N215: 181.9323167 | O215: 43.01636017 | P215: 5.307520768 | Q215: 151.509821 | R215: 1446.812216 | S215: -5.307520768
J216: 3.025 | K216: 48.5976493 | L216: 6.848316883 | M216: 2.962062013 | N216: 183.1489404 | O216: 43.18937454 | P216: 5.381408558 | Q216: 151.2139281 | R216: 1443.986647 | S216: -5.381408558
J217: 3.05 | K217: 48.46401066 | L217: 6.703578519 | M217: 2.975076196 | N217: 184.3622088 | O217: 43.35877379 | P217: 5.455623001 | Q217: 150.9198696 | R217: 1441.178595 | S217: -5.455623001
J218: 3.075 | K218: 48.33151665 | L218: 6.558578504 | M218: 2.987987541 | N218: 185.5721505 | O218: 43.52455129 | P218: 5.530161511 | Q218: 150.6276236 | R218: 1438.387852 | S218: -5.530161511
J219: 3.1 | K219: 48.20015689 | L219: 6.413322588 | M219: 3.000797299 | N219: 186.7787941 | O219: 43.68670058 | P219: 5.605021532 | Q219: 150.3371686 | R219: 1435.614211 | S219: -5.605021532
J220: 3.125 | K220: 48.06992112 | L220: 6.267816445 | M220: 3.013506703 | N220: 187.9821677 | O220: 43.84521533 | P220: 5.68020054 | Q220: 150.0484831 | R220: 1432.857468 | S220: -5.68020054
J221: 3.15 | K221: 47.94079915 | L221: 6.122065672 | M221: 3.026116971 | N221: 189.1822994 | O221: 44.00008936 | P221: 5.755696041 | Q221: 149.7615459 | R221: 1430.117419 | S221: -5.755696041
J222: 3.175 | K222: 47.81278091 | L222: 5.976075795 | M222: 3.038629303 | N222: 190.3792169 | O222: 44.15131662 | P222: 5.831505572 | Q222: 149.4763358 | R222: 1427.393863 | S222: -5.831505572
J223: 3.2 | K223: 47.68585643 | L223: 5.829852267 | M223: 3.051044885 | N223: 191.5729476 | O223: 44.2988912 | P223: 5.9076267 | Q223: 149.1928321 | R223: 1424.686602 | S223: -5.9076267
J224: 3.225 | K224: 47.56001582 | L224: 5.683400473 | M224: 3.063364887 | N224: 192.7635187 | O224: 44.44280733 | P224: 5.98405702 | Q224: 148.9110139 | R224: 1421.995436 | S224: -5.98405702
J225: 3.25 | K225: 47.43524929 | L225: 5.536725729 | M225: 3.075590464 | N225: 193.9509573 | O225: 44.58305937 | P225: 6.060794157 | Q225: 148.6308608 | R225: =Q225/(2*PI())*60 -> 1419.320171 | S225: =-P225 -> -6.060794157
J226: 3.275 | K226: 47.31154716 | L226: 5.389833282 | M226: 3.087722754 | N226: 195.1352901 | O226: 44.71964181 | P226: 6.137835766 | Q226: 148.3523524 | R226: 1416.660612 | S226: -6.137835766
J227: 3.3 | K227: 47.18889982 | L227: 5.242728317 | M227: 3.099762882 | N227: 196.3165435 | O227: 44.85254926 | P227: 6.215179527 | Q227: 148.0754685 | R227: 1414.016566 | S227: -6.215179527
J228: 3.325 | K228: 47.06729777 | L228: 5.095415952 | M228: 3.111711959 | N228: 197.4947438 | O228: 44.98177649 | P228: 6.292823151 | Q228: 147.8001891 | R228: 1411.387841 | S228: -6.292823151
J229: 3.35 | K229: 46.9467316 | L229: 4.947901245 | M229: 3.123571079 | N229: 198.669917 | O229: 45.10731838 | P229: 6.370764375 | Q229: 147.5264944 | R229: 1408.774249 | S229: -6.370764375
J230: 3.375 | K230: 46.82719198 | L230: 4.800189192 | M230: 3.135341324 | N230: 199.8420889 | O230: 45.22916991 | P230: 6.449000964 | Q230: 147.2543647 | R230: 1406.175602 | S230: -6.449000964
J231: 3.4 | K231: 46.70866968 | L231: 4.652284727 | M231: 3.147023761 | N231: 201.0112851 | O231: 45.34732623 | P231: 6.52753071 | Q231: 146.9837804 | R231: 1403.591713 | S231: -6.52753071
J232: 3.425 | K232: 46.59115556 | L232: 4.504192729 | M232: 3.158619443 | N232: 202.1775308 | O232: 45.46178259 | P232: 6.60635143 | Q232: 146.7147223 | R232: 1401.022397 | S232: -6.60635143
J233: 3.45 | K233: 46.47464056 | L233: 4.355918019 | M233: 3.170129411 | N233: 203.3408512 | O233: 45.57253435 | P233: 6.685460968 | Q233: 146.4471711 | R233: 1398.46747 | S233: -6.685460968
J234: 3.475 | K234: 46.35911571 | L234: 4.207465361 | M234: 3.18155469 | N234: 204.5012711 | O234: 45.679577 | P234: 6.764857194 | Q234: 146.1811077 | R234: 1395.926753 | S234: -6.764857194
J235: 3.5 | K235: 46.24457213 | L235: 4.058839465 | M235: 3.192896294 | N235: 205.6588151 | O235: 45.78290617 | P235: 6.844538005 | Q235: 145.9165133 | R235: 1393.400062 | S235: -6.844538005
J236: 3.525 | K236: 46.13100103 | L236: 3.910044988 | M236: 3.204155224 | N236: 206.8135078 | O236: 45.88251757 | P236: 6.92450132 | Q236: 145.6533692 | R236: 1390.887221 | S236: -6.92450132
J237: 3.55 | K237: 46.01839369 | L237: 3.761086534 | M237: 3.215332465 | N237: 207.9653732 | O237: 45.97840705 | P237: 7.004745085 | Q237: 145.3916568 | R237: 1388.388052 | S237: -7.004745085
J238: 3.575 | K238: 45.9067415 | L238: 3.611968658 | M238: 3.226428994 | N238: 209.1144354 | O238: 46.07057057 | P238: 7.085267271 | Q238: 145.1313576 | R238: 1385.902377 | S238: -7.085267271
J239: 3.6 | K239: 45.79603591 | L239: 3.462695863 | M239: 3.237445772 | N239: 210.2607182 | O239: 46.15900419 | P239: 7.16606587 | Q239: 144.8724534 | R239: 1383.430024 | S239: -7.16606587
J240: 3.625 | K240: 45.68626846 | L240: 3.313272604 | M240: 3.248383749 | N240: 211.404245 | O240: 46.24370411 | P240: 7.247138903 | Q240: 144.614926 | R240: 1380.970819 | S240: -7.247138903
J241: 3.65 | K241: 45.57743078 | L241: 3.163703291 | M241: 3.259243864 | N241: 212.5450394 | O241: 46.32466661 | P241: 7.328484409 | Q241: 144.3587574 | R241: 1378.524589 | S241: -7.328484409
J242: 3.675 | K242: 45.46951456 | L242: 3.013992283 | M242: 3.270027041 | N242: 213.6831243 | O242: 46.40188809 | P242: 7.410100455 | Q242: 144.1039299 | R242: 1376.091165 | S242: -7.410100455
J243: 3.7 | K243: 45.3625116 | L243: 2.864143899 | M243: 3.280734196 | N243: 214.8185227 | O243: 46.47536508 | P243: 7.491985128 | Q243: 143.8504256 | R243: 1373.670378 | S243: -7.491985128
J244: 3.725 | K244: 45.25641376 | L244: 2.714162408 | M244: 3.29136623 | N244: 215.9512574 | O244: 46.54509418 | P244: 7.574136538 | Q244: 143.598227 | R244: 1371.262059 | S244: -7.574136538
J245: 3.75 | K245: 45.15121298 | L245: 2.564052041 | M245: 3.301924035 | N245: 217.0813509 | O245: 46.61107212 | P245: 7.656552821 | Q245: 143.3473167 | R245: 1368.866042 | S245: -7.656552821
J246: 3.775 | K246: 45.0469013 | L246: 2.413816984 | M246: 3.312408491 | N246: 218.2088254 | O246: 46.67329574 | P246: 7.739232129 | Q246: 143.0976774 | R246: 1366.482162 | S246: -7.739232129
J247: 3.8 | K247: 44.9434708 | L247: 2.263461382 | M247: 3.322820465 | N247: 219.3337033 | O247: 46.73176197 | P247: 7.822172641 | Q247: 142.8492919 | R247: 1364.110256 | S247: -7.822172641
J248: 3.825 | K248: 44.84091366 | L248: 2.11298934 | M248: 3.333160817 | N248: 220.4560063 | O248: 46.78646784 | P248: 7.905372555 | Q248: 142.6021432 | R248: 1361.750159 | S248: -7.905372555
J249: 3.85 | K249: 44.73922215 | L249: 1.962404925 | M249: 3.343430392 | N249: 221.5757562 | O249: 46.8374105 | P249: 7.988830092 | Q249: 142.3562144 | R249: 1359.401712 | S249: -7.988830092
J250: 3.875 | K250: 44.63838859 | L250: 1.811712163 | M250: 3.353630028 | N250: 222.6929745 | O250: 46.88458718 | P250: 8.072543492 | Q250: 142.1114887 | R250: 1357.064754 | S250: -8.072543492
J251: 3.9 | K251: 44.5384054 | L251: 1.660915044 | M251: 3.363760548 | N251: 223.8076827 | O251: 46.92799524 | P251: 8.156511018 | Q251: 141.8679496 | R251: 1354.739126 | S251: -8.156511018
J252: 3.925 | K252: 44.43926504 | L252: 1.510017521 | M252: 3.37382277 | N252: 224.9199018 | O252: 46.9676321 | P252: 8.24073095 | Q252: 141.6255804 | R252: 1352.424671 | S252: -8.24073095
J253: 3.95 | K253: 44.34096008 | L253: 1.359023513 | M253: 3.383817497 | N253: 226.0296529 | O253: 47.00349531 | P253: 8.325201594 | Q253: 141.3843647 | R253: 1350.121232 | S253: -8.325201594
J254: 3.975 | K254: 44.24348314 | L254: 1.207936902 | M254: 3.393745525 | N254: 227.1369567 | O254: 47.0355825 | P254: 8.40992127 | Q254: 141.1442865 | R254: 1347.828653 | S254: -8.40992127
J255: 4 | K255: 44.14682692 | L255: 1.056761537 | M255: 3.403607639 | N255: 228.2418339 | O255: 47.06389141 | P255: 8.494888321 | Q255: 140.9053294 | R255: 1345.546781 | S255: -8.494888321
J256: 4.025 | K256: 44.05098421 | L256: 0.905501233 | M256: 3.413404614 | N256: 229.3443048 | O256: 47.08841987 | P256: 8.580101109 | Q256: 140.6674775 | R256: 1343.275462 | S256: -8.580101109
J257: 4.05 | K257: 43.95594783 | L257: 0.7541597731 | M257: 3.423137214 | N257: 230.4443898 | O257: 47.1091658 | P257: 8.665558015 | Q257: 140.4307149 | R257: 1341.014546 | S257: -8.665558015
... 339 more rows

Sheet お問合せ
B2: 技術的なご質問のみお受けします。
C4: sxsijk@Gmail.com | D4: sxsijk@Gmail.com
E118: =C118-C$19 -> 0
E119: =IF(C119<0,C119+360,C119)-IF(C$20<0,C$20+360,C$20) -> 0
E120: =C120-C$21 -> 0
E122: =C122-C$15 -> 0
E123: =C123-C$16 -> 0
E124: =C124-C$17 -> 0
E125: =C125-C$18 -> 0
E126: =C126-C$19 -> 0
E127: =IF(C127<0,C127+360,C127)-IF(C$20<0,C$20+360,C$20) -> 0
E128: =C128-C$21 -> 0
E129: =C129-C$22 -> 0
E130: =C130-C$23 -> 0
E131: =C131-C$24 -> 0
E132: =C132-C$25 -> 0
C135: 35 | E135: =C135-C$15 -> 35
B136: λp | E136: =C136-C$16 -> 0
E137: =C137-C$17 -> 0
C138: =SQRT(((#REF!^2*COS(RADIANS(C135)))^2+(#REF!^2*SIN(RADIANS(C135)))^2)/(#REF!^2*(1-C$4*SIN(RADIANS(C135))^2))) ->  | E138: =C138-C$18 -> 
C139: =DEGREES(C141/C138) ->  | E139: =C139-C$23 -> 
E140: =C140-C$24 -> 0
E141: =C141-C$25 -> 0
E142: =IF(C142<0,C142+360,C142)-IF(C$20<0,C$20+360,C$20) -> 0
E143: =C143-C$21 -> 0
C144: =DEGREES(ATAN2((1-C$4)*COS(RADIANS(C143)),SIN(RADIANS(C143)))) ->  | E144: =C144-C$19 -> 
C145: =SQRT(((#REF!^2*COS(RADIANS(C144)))^2+(#REF!^2*SIN(RADIANS(C144)))^2)/(#REF!^2*(1-C$4*SIN(RADIANS(C144))^2))) ->  | E145: =C145-C$22 -> 
C146: =DEGREES(ACOS(COS(RADIANS(C$137))*COS(RADIANS(C143))*(COS(RADIANS(C$136))*COS(RADIANS(C142))+SIN(RADIANS(C$136))*SIN(RADIANS(C142)))+SIN(RADIANS(C$137))*SIN(RADIANS(C143)))) -> 0 | E146: =C146-C$23 -> 0
C147: =DEGREES(ATAN2(COS(RADIANS(C$137))*SIN(RADIANS(C143))-SIN(RADIANS(C$137))*COS(RADIANS(C143))*COS(RADIANS(C142-C$136)),COS(RADIANS(C143))*SIN(RADIANS(C142-C$136)))) ->  | E147: =C147-C$24 -> 
C148: =SQRT(((C$138-C145)*COS(RADIANS(C146/2)))^2+(MAX(C$138,C145)*RADIANS(C146)-ABS(C$138-C145)*SIN(RADIANS(C146/2)))^2) ->  | E148: =C148-C$25 -> 
A149: 補正 | B149: θ＝θ+(d0-d)/r | C149: =C139+DEGREES((C141-C148)/C145) ->  | E149: =C149-C$23 -> 
C150: =C140 -> 0 | E150: =C150-C$24 -> 0
C151: =C141 -> 0 | E151: =C151-C$25 -> 0
E152: =IF(C152<0,C152+360,C152)-IF(C$20<0,C$20+360,C$20) -> 0
E153: =C153-C$21 -> 0
C154: =DEGREES(ATAN2((1-C$4)*COS(RADIANS(C153)),SIN(RADIANS(C153)))) ->  | E154: =C154-C$19 -> 
C155: =SQRT(((#REF!^2*COS(RADIANS(C154)))^2+(#REF!^2*SIN(RADIANS(C154)))^2)/(#REF!^2*(1-C$4*SIN(RADIANS(C154))^2))) ->  | E155: =C155-C$22 -> 
C156: =DEGREES(ACOS(COS(RADIANS(C$137))*COS(RADIANS(C153))*(COS(RADIANS(C$136))*COS(RADIANS(C152))+SIN(RADIANS(C$136))*SIN(RADIANS(C152)))+SIN(RADIANS(C$137))*SIN(RADIANS(C153)))) -> 0 | E156: =C156-C$23 -> 0
C157: =DEGREES(ATAN2(COS(RADIANS(C$137))*SIN(RADIANS(C153))-SIN(RADIANS(C$137))*COS(RADIANS(C153))*COS(RADIANS(C152-C$136)),COS(RADIANS(C153))*SIN(RADIANS(C152-C$136)))) ->  | E157: =C157-C$24 -> 
C158: =SQRT(((C$138-C155)*COS(RADIANS(C156/2)))^2+(MAX(C$138,C155)*RADIANS(C156)-ABS(C$138-C155)*SIN(RADIANS(C156/2)))^2) ->  | E158: =C158-C$25 -> 
